bitfinex/quotes_BTCUSD_20241002
["timestamp","ask_amount","ask_price","bid_price","bid_amount"]
[1727842247459,0.002,61760.0,61759.0,0.129535]
[1727842247877,0.002,61760.0,61757.0,0.00082]
[1727842248089,0.002,61760.0,61758.0,0.129537]
[1727842248507,0.002,61760.0,61757.0,0.00082]
[1727842248722,0.002,61760.0,61757.0,0.130358]
[1727842248934,0.129532,61761.0,61757.0,0.130358]
[1727842249387,0.518101,61764.0,61757.0,0.130358]
[1727842249388,0.134528,61763.0,61759.0,0.129535]
[1727842249577,0.134528,61763.0,61757.0,0.259897]
[1727842249578,0.00164,61765.0,61757.0,0.00082]
[1727842249797,0.00164,61765.0,61761.0,0.259061]
[1727842250017,0.00164,61765.0,61762.0,0.129528]
[1727842250449,0.005,61763.0,61762.0,0.129528]
[1727842250883,0.00164,61765.0,61762.0,0.129528]
[1727842251339,0.00364,61765.0,61762.0,0.129528]
[1727842251986,0.00364,61765.0,61762.0,0.259058]
[1727842252204,0.01064,61765.0,61763.0,0.129525]
[1727842252636,0.00364,61765.0,61762.0,0.00323789]
[1727842252857,0.00364,61765.0,61763.0,0.129527]
[1727842253318,0.00664,61765.0,61763.0,0.129527]
[1727842253555,0.00664,61765.0,61762.0,0.07853789]
[1727842253813,0.00164,61765.0,61763.0,0.129527]
[1727842254018,0.00364,61765.0,61763.0,0.129527]
[1727842255310,0.00164,61765.0,61764.0,0.129525]
[1727842255753,0.00364,61765.0,61763.0,0.129527]
[1727842255982,0.00164,61765.0,61763.0,0.129527]
[1727842256211,0.00364,61765.0,61762.0,0.0753]
[1727842256420,0.00364,61765.0,61764.0,0.129525]
[1727842257100,0.00164,61765.0,61764.0,0.129525]
[1727842257581,0.00164,61765.0,61762.0,0.0785379]
[1727842257794,0.00164,61765.0,61764.0,0.129525]
[1727842258017,0.00364,61765.0,61762.0,0.0032379]
[1727842258232,0.00364,61765.0,61763.0,0.129526]
[1727842258649,0.00364,61765.0,61763.0,0.129527]
[1727842259327,0.00164,61765.0,61763.0,0.129527]
[1727842259540,0.00364,61765.0,61763.0,0.129527]
[1727842259758,0.00164,61765.0,61763.0,0.129527]
[1727842260191,0.00364,61765.0,61763.0,0.129527]
[1727842263024,0.00364,61765.0,61759.0,0.16551445]
[1727842263232,0.00364,61765.0,61762.0,0.129528]
[1727842263875,0.00164,61765.0,61762.0,0.129528]
[1727842264095,0.131163,61765.0,61760.0,0.29422645]
[1727842264309,0.133163,61765.0,61760.0,0.29422645]
[1727842264521,0.129526,61764.0,61760.0,0.16469445]
[1727842264766,0.129526,61764.0,61760.0,0.29422745]
[1727842264984,0.262689,61765.0,61760.0,0.16469445]
[1727842265217,0.129533,61760.0,61759.0,0.00082]
[1727842265430,0.208333,61760.0,61759.0,0.00082]
[1727842265645,0.35814395,61760.0,61759.0,0.00082]
[1727842266492,0.36614395,61760.0,61759.0,0.00082]
[1727842266693,0.39152531,61760.0,61759.0,0.00082]
[1727842267103,0.39652531,61760.0,61759.0,0.00082]
[1727842267321,0.38352531,61760.0,61759.0,0.00082]
[1727842267533,0.54624784,61760.0,61759.0,0.00082]
[1727842267751,0.47482531,61760.0,61759.0,0.00082]
[1727842267958,0.76107093,61760.0,61759.0,0.00082]
[1727842268175,0.78521177,61760.0,61759.0,0.00082]
[1727842268391,0.94890622,61760.0,61759.0,0.00082]
[1727842268615,0.830202,61760.0,61759.0,0.00082]
[1727842269102,0.836202,61760.0,61759.0,0.00082]
[1727842269334,0.830202,61760.0,61759.0,0.00082]
[1727842269541,0.841202,61760.0,61759.0,0.00082]
[1727842269963,0.830202,61760.0,61759.0,0.00082]
[1727842270176,0.840202,61760.0,61759.0,0.00082]
[1727842270427,0.834202,61760.0,61759.0,0.00082]
[1727842270862,0.828202,61760.0,61759.0,0.00082]
[1727842271283,0.833202,61760.0,61759.0,0.00082]
[1727842271944,0.837202,61760.0,61759.0,0.00082]
[1727842272171,0.81182064,61760.0,61759.0,0.00082]
[1727842272409,0.80266151,61760.0,61759.0,0.00082]
[1727842272618,0.91366151,61760.0,61759.0,0.00082]
[1727842272828,1.05859198,61760.0,61759.0,0.00082]
[1727842273254,1.17881477,61760.0,61759.0,0.00082]
[1727842273458,1.17881477,61760.0,61757.0,0.00082]
[1727842273459,0.002,61758.0,61757.0,0.00082]
[1727842273684,0.75545456,61758.0,61757.0,0.00082]
[1727842274118,1.06831228,61758.0,61757.0,0.00082]
[1727842274352,1.17041877,61758.0,61757.0,0.00082]
[1727842274559,1.18241877,61758.0,61757.0,0.00082]
[1727842275007,1.02060782,61758.0,61757.0,0.00082]
[1727842275217,0.90038283,61758.0,61757.0,0.00082]
[1727842275425,0.9387663,61758.0,61757.0,0.00082]
[1727842276088,0.80783803,61758.0,61757.0,0.00082]
[1727842276326,0.79383803,61758.0,61757.0,0.00082]
[1727842276542,0.91338283,61758.0,61757.0,0.00082]
[1727842276806,0.78245456,61758.0,61757.0,0.00082]
[1727842277021,0.89974921,61758.0,61757.0,0.00082]
[1727842277247,0.76688478,61758.0,61757.0,0.00082]
[1727842277905,0.65488478,61758.0,61757.0,0.00082]
[1727842278117,0.78658758,61758.0,61757.0,0.00082]
[1727842278327,0.80058758,61758.0,61757.0,0.00082]
[1727842278544,0.51459313,61758.0,61757.0,0.00082]
[1727842278759,0.49044634,61758.0,61757.0,0.00082]
[1727842278977,0.51798241,61758.0,61757.0,0.00082]
[1727842279405,0.43280888,61758.0,61757.0,0.00082]
[1727842279820,0.54336077,61758.0,61757.0,0.00082]
[1727842280092,0.55350452,61758.0,61757.0,0.00082]
[1727842280263,0.43080888,61758.0,61757.0,0.00082]
[1727842280487,0.44180888,61758.0,61757.0,0.00082]
[1727842280923,0.55149099,61758.0,61757.0,0.00082]
[1727842281147,0.43080888,61758.0,61757.0,0.00082]
[1727842281378,0.55848244,61758.0,61757.0,0.00082]
[1727842281869,0.54048244,61758.0,61757.0,0.00082]
[1727842282090,0.51509946,61758.0,61757.0,0.00082]
[1727842282309,0.4024259,61758.0,61757.0,0.00082]
[1727842282520,0.4154259,61758.0,61757.0,0.00082]
[1727842282739,0.4024259,61758.0,61757.0,0.00082]
[1727842282952,0.52309038,61758.0,61757.0,0.00082]
[1727842283188,0.4164259,61758.0,61757.0,0.00082]
[1727842283403,0.53708644,61758.0,61757.0,0.00082]
[1727842283622,0.4024259,61758.0,61757.0,0.00082]
[1727842283849,0.3944259,61758.0,61757.0,0.00082]
[1727842284047,0.52408282,61758.0,61757.0,0.00082]
[1727842284710,0.213937,61758.0,61757.0,0.00082]
[1727842284922,0.28633003,61758.0,61757.0,0.00082]
[1727842285361,0.2393197,61758.0,61757.0,0.00082]
[1727842285577,0.32571394,61758.0,61757.0,0.00082]
[1727842286818,0.2533197,61758.0,61757.0,0.00082]
[1727842287024,0.30158292,61758.0,61757.0,0.00082]
[1727842287666,0.0483827,61758.0,61757.0,0.00082]
[1727842288296,0.0393827,61758.0,61757.0,0.130359]
[1727842288521,0.0393827,61758.0,61757.0,0.00082]
[1727842288522,0.0253827,61758.0,61757.0,0.00082]
[1727842288742,0.0343827,61758.0,61757.0,0.00082]
[1727842288972,0.0483827,61758.0,61757.0,0.00082]
[1727842289680,0.0343827,61758.0,61757.0,0.130359]
[1727842289904,0.0253827,61758.0,61757.0,0.130359]
[1727842290131,0.0293827,61758.0,61757.0,0.130359]
[1727842291755,0.0253827,61758.0,61757.0,0.130359]
[1727842292216,0.003,61758.0,61757.0,0.207359]
[1727842292437,0.00164,61759.0,61758.0,0.129537]
[1727842294271,0.00264,61759.0,61758.0,0.129537]
[1727842299173,0.00264,61759.0,61757.0,0.00082]
[1727842299174,0.00264,61759.0,61757.0,0.130359]
[1727842300105,0.00164,61759.0,61757.0,0.130359]
[1727842300318,0.00264,61759.0,61757.0,0.130359]
[1727842302757,0.00264,61759.0,61757.0,0.00082]
[1727842302980,0.00264,61759.0,61757.0,0.130359]
[1727842303703,0.00264,61759.0,61757.0,0.00082]
[1727842305049,0.00264,61759.0,61758.0,0.129537]
[1727842305538,0.00264,61759.0,61758.0,0.22805665]
[1727842306172,0.00264,61759.0,61758.0,0.09851965]
[1727842306618,0.00164,61759.0,61758.0,0.09851965]
[1727842306836,0.00264,61759.0,61758.0,0.22805665]
[1727842308440,0.00264,61759.0,61758.0,0.129537]
[1727842308735,0.00264,61759.0,61758.0,0.39598925]
[1727842308957,0.00264,61759.0,61758.0,0.3927511]
[1727842309638,0.00264,61759.0,61758.0,0.44430284]
[1727842309895,0.00264,61759.0,61758.0,0.16469445]
[1727842310106,0.00264,61759.0,61757.0,0.00082]
[1727842310323,0.129537,61758.0,61757.0,0.00082]
[1727842311275,0.299337,61758.0,61757.0,0.00082]
[1727842311489,0.49126518,61758.0,61757.0,0.00082]
[1727842311944,0.65595963,61758.0,61757.0,0.00082]
[1727842312166,0.65595963,61758.0,61757.0,0.00182]
[1727842312378,0.65595963,61758.0,61757.0,0.00082]
[1727842312595,0.66995963,61758.0,61757.0,0.00082]
[1727842313970,0.67995963,61758.0,61757.0,0.00082]
[1727842314179,0.67946693,61758.0,61757.0,0.00082]
[1727842314402,0.51477248,61758.0,61757.0,0.00082]
[1727842314620,0.323337,61758.0,61757.0,0.00082]
[1727842314865,0.30454727,61758.0,61757.0,0.00082]
[1727842315371,0.32992897,61758.0,61757.0,0.00082]
[1727842315651,0.66137267,61758.0,61757.0,0.00082]
[1727842315881,0.65137267,61758.0,61757.0,0.00082]
[1727842316113,0.5265221,61758.0,61757.0,0.00082]
[1727842316594,0.5165221,61758.0,61757.0,0.00082]
[1727842317069,0.5255221,61758.0,61757.0,0.00082]
[1727842317506,0.5305221,61758.0,61757.0,0.00082]
[1727842317720,0.5265221,61758.0,61757.0,0.00082]
[1727842317940,0.69121655,61758.0,61757.0,0.00082]
[1727842318599,0.70521655,61758.0,61757.0,0.00082]
[1727842318841,0.69121655,61758.0,61757.0,0.00082]
[1727842319085,0.68121655,61758.0,61757.0,0.00082]
[1727842319309,0.70521655,61758.0,61757.0,0.00082]
[1727842320918,0.5405221,61758.0,61757.0,0.00082]
[1727842321662,0.5151404,61758.0,61757.0,0.00082]
[1727842324324,0.44200369,61758.0,61757.0,0.00082]
[1727842324550,0.153537,61758.0,61757.0,0.00082]
[1727842324764,0.17891878,61758.0,61757.0,0.00082]
[1727842325226,0.16891878,61758.0,61757.0,0.00082]
[1727842325464,0.17891878,61758.0,61757.0,0.00082]
[1727842325908,0.157537,61758.0,61757.0,0.00082]
[1727842326140,0.028,61758.0,61757.0,0.130359]
[1727842326399,0.03,61758.0,61757.0,0.13359717]
[1727842326618,0.03,61758.0,61757.0,0.130359]
[1727842326851,0.028,61758.0,61757.0,0.130359]
[1727842327317,0.00164,61759.0,61758.0,0.129537]
[1727842327771,0.00164,61759.0,61758.0,0.13277513]
[1727842328508,0.00164,61759.0,61758.0,0.29746956]
[1727842328736,0.00164,61759.0,61758.0,0.001]
[1727842329180,0.00164,61759.0,61758.0,0.132537]
[1727842329181,0.00264,61759.0,61758.0,0.132537]
[1727842329886,0.00264,61759.0,61758.0,0.003]
[1727842330145,0.00164,61759.0,61758.0,0.130537]
[1727842330388,0.00164,61759.0,61758.0,0.132537]
[1727842330673,0.00164,61759.0,61758.0,0.131537]
[1727842330918,0.00264,61759.0,61758.0,0.131537]
[1727842336647,0.08354,61759.0,61758.0,0.002]
[1727842336886,0.213075,61759.0,61758.0,0.002]
[1727842338043,0.212075,61759.0,61758.0,0.002]
[1727842338294,0.129537,61758.0,61757.0,0.00082]
[1727842338523,0.00464,61759.0,61758.0,0.002]
[1727842338760,0.00164,61759.0,61758.0,0.131537]
[1727842339616,0.00164,61759.0,61758.0,0.129537]
[1727842339818,0.00464,61759.0,61758.0,0.129537]
[1727842340230,0.01264,61759.0,61758.0,0.129537]
[1727842340439,0.00464,61759.0,61757.0,0.00082]
[1727842340650,0.134175,61759.0,61757.0,0.00082]
[1727842340903,0.00664,61759.0,61757.0,0.00082]
[1727842341115,0.00464,61759.0,61758.0,0.129537]
[1727842341320,0.00164,61759.0,61758.0,0.129537]
[1727842341525,0.00164,61759.0,61758.0,0.131537]
[1727842341961,0.00164,61759.0,61758.0,0.129537]
[1727842342399,0.00164,61759.0,61758.0,0.131537]
[1727842342611,0.00464,61759.0,61758.0,0.131537]
[1727842342815,0.00464,61759.0,61758.0,0.129537]
[1727842343028,0.129537,61758.0,61757.0,0.00082]
[1727842343923,0.00464,61759.0,61757.0,0.00082]
[1727842344134,0.00164,61759.0,61757.0,0.00082]
[1727842344361,0.129537,61758.0,61757.0,0.00082]
[1727842345420,0.129537,61758.0,61757.0,0.132359]
[1727842345421,0.001,61758.0,61757.0,0.132359]
[1727842346314,0.00164,61759.0,61757.0,0.130359]
[1727842346561,0.131176,61759.0,61757.0,0.00082]
[1727842347013,0.00164,61759.0,61757.0,0.00082]
[1727842347475,0.00164,61759.0,61757.0,0.130359]
[1727842347919,0.00364,61759.0,61757.0,0.00082]
[1727842348128,0.00364,61759.0,61758.0,0.129537]
[1727842349189,0.00164,61759.0,61758.0,0.129537]
[1727842349421,0.02701936,61759.0,61758.0,0.129537]
[1727842350532,0.02901936,61759.0,61758.0,0.129537]
[1727842351451,0.15855536,61759.0,61758.0,0.002]
[1727842351884,0.28781321,61759.0,61758.0,0.002]
[1727842352101,0.26243385,61759.0,61758.0,0.002]
[1727842352769,0.129537,61758.0,61757.0,0.00082]
[1727842352995,0.27439485,61758.0,61757.0,0.00082]
[1727842354762,0.27747018,61758.0,61757.0,0.00282]
[1727842355398,0.25441787,61758.0,61757.0,0.00282]
[1727842357145,0.30284308,61758.0,61757.0,0.00282]
[1727842359449,0.25441787,61758.0,61757.0,0.00282]
[1727842360334,0.30284308,61758.0,61757.0,0.00282]
[1727842360557,0.25441787,61758.0,61757.0,0.00282]
[1727842360768,0.32706764,61758.0,61757.0,0.00282]
[1727842360982,0.25441787,61758.0,61757.0,0.00282]
[1727842362086,0.229037,61758.0,61757.0,0.00282]
[1727842362534,0.132537,61758.0,61757.0,0.00282]
[1727842362751,0.20519033,61758.0,61757.0,0.00282]
[1727842363189,0.42388253,61758.0,61757.0,0.00282]
[1727842364487,0.32701617,61758.0,61757.0,0.00282]
[1727842364708,0.44809912,61758.0,61757.0,0.00282]
[1727842365431,0.47348044,61758.0,61757.0,0.00282]
[1727842367005,0.35239749,61758.0,61757.0,0.00282]
[1727842368513,0.47348044,61758.0,61757.0,0.00282]
[1727842368956,0.35239749,61758.0,61757.0,0.00282]
[1727842369385,0.34394344,61758.0,61757.0,0.00282]
[1727842369616,0.07686857,61758.0,61757.0,0.132359]
[1727842369842,0.02838132,61758.0,61757.0,0.132359]
[1727842370528,0.02838132,61758.0,61757.0,0.130359]
[1727842370529,0.02538132,61758.0,61757.0,0.130359]
[1727842370748,0.02538132,61758.0,61757.0,0.132359]
[1727842370968,0.02838132,61758.0,61757.0,0.132359]
[1727842371180,0.02538132,61758.0,61757.0,0.132359]
[1727842371404,0.02538132,61758.0,61757.0,0.130359]
[1727842371653,0.02738132,61758.0,61757.0,0.132359]
[1727842372100,0.002,61758.0,61757.0,0.132359]
[1727842374292,0.002,61758.0,61757.0,0.29705345]
[1727842389236,0.002,61758.0,61757.0,0.30029158]
[1727842395532,0.002,61758.0,61757.0,0.31765672]
[1727842395803,0.002,61758.0,61757.0,0.29705345]
[1727842396015,0.002,61758.0,61757.0,0.30029138]
[1727842396231,0.002,61758.0,61757.0,0.31764969]
[1727842399138,0.002,61758.0,61757.0,0.31766485]
[1727842401068,0.002,61758.0,61757.0,0.31442692]
[1727842401849,0.002,61758.0,61757.0,0.29705345]
[1727842402049,0.002,61758.0,61757.0,0.31766561]
[1727842402261,0.002,61758.0,61757.0,0.31442767]
[1727842404845,0.002,61758.0,61757.0,0.41293587]
[1727842405064,0.002,61758.0,61757.0,0.39556165]
[1727842405274,0.002,61758.0,61757.0,0.41293384]
[1727842408433,0.002,61758.0,61757.0,0.39556165]
[1727842408655,0.002,61758.0,61757.0,0.4129504]
[1727842409476,0.002,61758.0,61757.0,0.39556165]
[1727842425403,0.002,61758.0,61757.0,0.49556165]
[1727842426063,0.002,61758.0,61757.0,0.52360914]
[1727842426544,0.002,61758.0,61757.0,0.49556165]
[1727842427179,0.002,61758.0,61757.0,0.52360914]
[1727842430299,0.002,61758.0,61757.0,0.52560914]
[1727842430779,0.002,61758.0,61757.0,0.5255887]
[1727842432444,0.002,61758.0,61757.0,0.49756165]
[1727842433613,0.002,61758.0,61757.0,0.49556165]
[1727842437142,0.002,61758.0,61757.0,0.52355341]
[1727842437354,0.002,61758.0,61757.0,0.52557672]
[1727842437987,0.002,61758.0,61757.0,0.49756165]
[1727842439723,0.002,61758.0,61757.0,0.57356165]
[1727842441195,0.002,61758.0,61757.0,0.67686165]
[1727842441406,0.002,61758.0,61757.0,0.90975863]
[1727842441627,0.002,61758.0,61757.0,0.89275815]
[1727842441909,0.001,61758.0,61757.0,0.98799788]
[1727842442127,0.00164,61759.0,61758.0,0.236537]
[1727842442346,0.01,61763.0,61762.0,0.134529]
[1727842442557,0.01,61763.0,61762.0,0.67526916]
[1727842442766,0.01,61763.0,61762.0,0.67203165]
[1727842443513,0.24296023,61775.0,61762.0,0.67203165]
[1727842443514,0.24296023,61774.0,61771.0,0.102]
[1727842443744,0.24296023,61774.0,61771.0,0.49471265]
[1727842444201,0.002,61778.0,61771.0,0.49471265]
[1727842444453,0.002,61778.0,61771.0,0.57571265]
[1727842444691,0.002,61778.0,61771.0,0.58071265]
[1727842444947,0.002,61778.0,61771.0,0.59371265]
[1727842445176,0.002,61778.0,61771.0,0.6422821]
[1727842445390,0.002,61778.0,61771.0,0.6292821]
[1727842445597,0.002,61778.0,61771.0,0.58071265]
[1727842445839,0.002,61778.0,61771.0,0.59371265]
[1727842446275,0.0027,61772.0,61771.0,0.60471265]
[1727842446911,0.0027,61772.0,61771.0,0.59171265]
[1727842447730,0.0027,61772.0,61771.0,0.60571265]
[1727842448145,0.0027,61772.0,61771.0,0.69901265]
[1727842448581,0.002,61778.0,61777.0,0.236498]
[1727842448788,0.002,61778.0,61777.0,0.59800065]
[1727842449871,0.003,61778.0,61777.0,0.61200065]
[1727842450282,0.003,61778.0,61777.0,0.62600065]
[1727842454159,0.00464,61778.0,61777.0,0.62600065]
[1727842459294,0.00464,61778.0,61777.0,0.69085065]
[1727842461454,0.00464,61778.0,61777.0,0.68885065]
[1727842461677,0.00464,61778.0,61777.0,0.69085065]
[1727842466903,0.00464,61778.0,61777.0,0.59255065]
[1727842469664,0.00464,61778.0,61777.0,0.49404245]
[1727842469882,0.00464,61778.0,61777.0,0.59255065]
[1727842478081,0.00464,61778.0,61777.0,0.64843201]
[1727842488374,0.00464,61778.0,61777.0,0.696864]
[1727842488652,0.002,61784.0,61783.0,0.3349932]
[1727842488864,0.002,61784.0,61783.0,0.78708616]
[1727842489072,0.002,61784.0,61783.0,0.81137577]
[1727842489288,0.002,61784.0,61783.0,0.83566538]
[1727842489497,0.002,61784.0,61783.0,0.71421733]
[1727842489711,0.002,61784.0,61783.0,0.8356838]
[1727842489912,0.002,61784.0,61783.0,0.71421733]
[1727842490132,0.003,61784.0,61783.0,0.72821733]
[1727842490370,0.003,61784.0,61783.0,0.84968289]
[1727842490573,0.003,61784.0,61783.0,0.84968484]
[1727842490776,0.003,61784.0,61783.0,0.72821733]
[1727842491384,0.003,61784.0,61783.0,0.72744053]
[1727842491598,0.003,61784.0,61783.0,0.82460326]
[1727842492242,0.003,61784.0,61783.0,0.84282875]
[1727842492700,0.003,61784.0,61783.0,0.74566602]
[1727842494656,0.003,61784.0,61783.0,0.84279296]
[1727842496205,0.003,61784.0,61783.0,0.84255196]
[1727842497245,0.003,61784.0,61783.0,0.84755196]
[1727842499195,0.003,61784.0,61783.0,0.91239196]
[1727842499657,0.24296023,61793.0,61792.0,0.3299742]
[1727842499864,0.24296023,61793.0,61792.0,0.49466865]
[1727842500077,0.0789,61794.0,61793.0,0.231464]
[1727842500289,0.0789,61794.0,61793.0,0.39939456]
[1727842500472,0.0985,61795.0,61794.0,0.231462]
[1727842500749,0.0985,61795.0,61794.0,0.39615645]
[1727842501779,0.0985,61795.0,61794.0,0.39415645]
[1727842502009,0.0985,61795.0,61794.0,0.40415645]
[1727842503848,0.0985,61795.0,61794.0,0.41015645]
[1727842504085,0.0985,61795.0,61794.0,0.39415645]
[1727842504541,0.0985,61795.0,61794.0,0.41115645]
[1727842504761,0.0985,61795.0,61794.0,0.40415645]
[1727842505000,0.0985,61795.0,61794.0,0.39415645]
[1727842505412,0.0985,61795.0,61794.0,0.40615645]
[1727842506346,0.0985,61795.0,61794.0,0.41415645]
[1727842506796,0.0985,61795.0,61794.0,0.41835128]
[1727842508648,0.0985,61795.0,61794.0,0.02]
[1727842508649,0.30686,61795.0,61794.0,0.02]
[1727842508894,0.0985,61790.0,61779.0,0.04853861]
[1727842509110,0.0985,61790.0,61776.0,0.09707723]
[1727842509111,0.1774,61786.0,61783.0,0.129484]
[1727842509335,0.258938,61791.0,61783.0,0.16469445]
[1727842509336,0.1774,61785.0,61783.0,0.16469445]
[1727842509611,0.1774,61785.0,61784.0,0.388445]
[1727842509826,0.1774,61785.0,61784.0,0.129483]
[1727842511196,0.1774,61785.0,61783.0,0.16469445]
[1727842511410,0.129478,61787.0,61784.0,0.006]
[1727842511620,0.1774,61786.0,61784.0,0.011]
[1727842511872,0.129493,61780.0,61776.0,0.1295]
[1727842512108,0.0484205,61780.0,61775.0,0.24296023]
[1727842512328,0.0484205,61780.0,61767.0,0.259035]
[1727842512329,0.0985082,61775.0,61767.0,0.259035]
[1727842512546,0.306905,61774.0,61769.0,0.129514]
[1727842512769,0.306905,61774.0,61767.0,0.259037]
[1727842512770,0.1774,61773.0,61770.0,0.129512]
[1727842512996,0.306906,61773.0,61765.0,0.129522]
[1727842513218,0.3575162,61775.0,61764.0,0.129523]
[1727842513219,0.1774,61767.0,61764.0,0.129523]
[1727842513461,0.0985082,61770.0,61760.0,0.4715]
[1727842513462,0.0789,61765.0,61760.0,0.4715]
[1727842513681,0.0789,61765.0,61764.0,0.129525]
[1727842514131,0.0789,61765.0,61761.0,0.16469445]
[1727842514403,0.0789,61765.0,61763.0,0.129527]
[1727842514647,0.0789,61765.0,61764.0,0.129525]
[1727842514912,0.0839,61765.0,61761.0,0.16469445]
[1727842515167,0.0799,61765.0,61764.0,0.129525]
[1727842515412,0.0839,61765.0,61764.0,0.129525]
[1727842515640,0.0839,61765.0,61764.0,0.29421945]
[1727842516305,0.0829,61765.0,61764.0,0.29421945]
[1727842516753,0.0789,61765.0,61764.0,0.29421945]
[1727842517186,0.0819,61765.0,61764.0,0.29421945]
[1727842517388,0.0789,61765.0,61764.0,0.29921945]
[1727842517816,0.0789,61765.0,61764.0,0.30121945]
[1727842519230,0.0789,61765.0,61764.0,0.29621945]
[1727842519643,0.0789,61765.0,61764.0,0.29721945]
[1727842520085,0.0789,61765.0,61764.0,0.29421945]
[1727842520314,0.0789,61765.0,61764.0,0.005]
[1727842520529,0.298523,61765.0,61764.0,0.005]
[1727842520750,0.298523,61765.0,61764.0,0.001]
[1727842521391,0.300523,61765.0,61764.0,0.001]
[1727842521816,0.298523,61765.0,61764.0,0.001]
[1727842522270,0.304523,61765.0,61764.0,0.001]
[1727842522507,0.175,61765.0,61764.0,0.001]
[1727842522718,0.175,61765.0,61760.0,0.259065]
[1727842522930,0.175,61765.0,61764.0,0.129525]
[1727842523355,0.177,61765.0,61764.0,0.129525]
[1727842523566,0.171,61765.0,61764.0,0.129525]
[1727842523778,0.169,61765.0,61764.0,0.129525]
[1727842523988,0.175,61765.0,61764.0,0.129525]
[1727842524243,0.171,61765.0,61764.0,0.129525]
[1727842524669,0.175,61765.0,61764.0,0.129525]
[1727842525108,0.177,61765.0,61764.0,0.129525]
[1727842525330,0.171,61765.0,61764.0,0.129525]
[1727842526272,0.169,61765.0,61764.0,0.130344]
[1727842526484,0.169,61765.0,61764.0,0.132344]
[1727842527364,0.17,61765.0,61764.0,0.132344]
[1727842538528,0.0799,61765.0,61764.0,0.29703845]
[1727842539165,0.0799,61765.0,61764.0,0.29503845]
[1727842539580,0.0799,61765.0,61764.0,0.29703845]
[1727842540075,0.0799,61765.0,61764.0,0.29503845]
[1727842540291,0.0789,61765.0,61764.0,0.29503845]
[1727842540725,0.0789,61765.0,61764.0,0.29803845]
[1727842540940,0.0789,61765.0,61764.0,0.29903845]
[1727842541435,0.0789,61765.0,61764.0,0.30303845]
[1727842541649,0.0789,61765.0,61764.0,0.29903845]
[1727842542086,0.0789,61765.0,61764.0,0.29503845]
[1727842542744,0.0799,61765.0,61764.0,0.30103845]
[1727842543179,0.0789,61765.0,61764.0,0.29803845]
[1727842543613,0.0799,61765.0,61764.0,0.30403845]
[1727842549198,0.0789,61765.0,61764.0,0.30403845]
[1727842550072,0.001,61765.0,61764.0,0.40252845]
[1727842550289,0.001,61765.0,61764.0,0.50252845]
[1727842550505,0.001,61765.0,61764.0,0.40403845]
[1727842550722,0.001,61765.0,61764.0,0.30403845]
[1727842550723,0.0963,61765.0,61764.0,0.30403845]
[1727842550936,0.001,61765.0,61764.0,0.30103845]
[1727842551394,0.00164,61772.0,61771.0,0.12951]
[1727842552091,0.00164,61772.0,61770.0,0.129511]
[1727842552335,0.0776,61771.0,61770.0,0.129511]
[1727842553718,0.0776,61771.0,61770.0,0.130511]
[1727842554364,0.0786,61771.0,61770.0,0.130511]
[1727842555670,0.0786,61771.0,61770.0,0.129511]
[1727842555879,0.0786,61771.0,61770.0,0.131511]
[1727842556598,0.12710165,61771.0,61770.0,0.131511]
[1727842557712,0.27940144,61771.0,61770.0,0.131511]
[1727842558821,0.50421144,61771.0,61770.0,0.002]
[1727842559042,0.49595558,61771.0,61770.0,0.002]
[1727842559900,0.62546558,61771.0,61770.0,0.002]
[1727842560119,0.50421144,61771.0,61770.0,0.002]
[1727842561261,0.60270144,61771.0,61770.0,0.002]
[1727842562360,0.60270144,61771.0,61764.0,0.000819]
[1727842562361,0.228013,61765.0,61764.0,0.000819]
[1727842562580,0.60171444,61765.0,61764.0,0.000819]
[1727842564127,0.76640889,61765.0,61764.0,0.000819]
[1727842564406,0.77240889,61765.0,61764.0,0.001819]
[1727842565067,0.64688589,61765.0,61758.0,0.00082]
[1727842565294,0.64644672,61759.0,61758.0,0.00082]
[1727842565520,0.76793089,61759.0,61758.0,0.00082]
[1727842565710,0.6486782,61759.0,61758.0,0.00082]
[1727842565971,0.50323644,61759.0,61758.0,0.00082]
[1727842566847,0.528617,61759.0,61758.0,0.00082]
[1727842567277,0.536617,61759.0,61758.0,0.00182]
[1727842567520,0.536617,61759.0,61758.0,0.00282]
[1727842567521,0.541617,61759.0,61758.0,0.00282]
[1727842567757,0.54049962,61759.0,61758.0,0.00282]
[1727842568450,0.66168257,61759.0,61758.0,0.00282]
[1727842569744,0.54049962,61759.0,61758.0,0.00282]
[1727842569954,0.66168257,61759.0,61758.0,0.00282]
[1727842571065,0.66168257,61759.0,61758.0,0.006558]
[1727842571247,0.81184562,61759.0,61758.0,0.006558]
[1727842572169,0.66528211,61759.0,61758.0,0.006558]
[1727842572590,0.76187544,61759.0,61758.0,0.006558]
[1727842572847,0.6650215,61759.0,61758.0,0.006558]
[1727842574386,0.76184983,61759.0,61758.0,0.006558]
[1727842574852,0.61168678,61759.0,61758.0,0.006558]
[1727842575072,0.315435,61759.0,61758.0,0.006558]
[1727842575292,0.5147545,61759.0,61758.0,0.006558]
[1727842575509,0.34081651,61759.0,61758.0,0.006558]
[1727842576441,0.41342212,61759.0,61758.0,0.006558]
[1727842577302,0.41341868,61759.0,61758.0,0.006558]
[1727842579459,0.34081651,61759.0,61758.0,0.006558]
[1727842579721,0.41341868,61759.0,61758.0,0.006558]
[1727842579934,0.56358173,61759.0,61758.0,0.006558]
[1727842581221,0.53820022,61759.0,61758.0,0.006558]
[1727842582055,0.53812215,61759.0,61758.0,0.006558]
[1727842582954,0.51394062,61759.0,61758.0,0.006558]
[1727842583174,0.36377757,61759.0,61758.0,0.006558]
[1727842583417,0.315435,61759.0,61758.0,0.006558]
[1727842583681,0.36377757,61759.0,61758.0,0.006558]
[1727842583896,0.315435,61759.0,61758.0,0.006558]